Cogmind - Beta 14 @@@ ROGUE MODE // 2024.10.24 @ 15:00:10 Player: WazdakkaGutsmek Result: Core destroyed Performance ------------- Evolutions (2) 1000 Regions Visited (7) 1400 Robots Destroyed (90) 450 Value Destroyed (2885) 2885 Prototype IDs (27) 540 Alien Tech Used (0) 0 Bonus (528) 528 TOTAL SCORE: 6803 Bonus ------- High Alert Combat Kills 400 Follower Combat Kills 42 Aligned with FarCom 300 Friendly Fire -214 Cogmind --------- Core Integrity 0/550 Matter 225/300 Energy 30/265 System Corruption 8% Temperature Critical (607) Movement Walking (285) Ox3 Location -8/Materials Parts ------- > --- POWER (1) -------- Improved Ion Engine > --- PROPULSION (3) --- Armored Treads Potential Leg > --- UTILITY (4) ------ Cryofiber Web Improved Heat Sink Huge Storage Unit Graphene Brace > --- WEAPON (3) ------- Heavy Laser Heavy Laser > --- INVENTORY (25) --- Armored Treads Armored Wheel Improved Cooling System Improved Cooling System Modified TNC Heavy Laser Heavy Laser Advanced EMP Blaster Proton Missile Launcher Proton Missile Launcher Rocket Launcher Datajack Peak State ------------ > --- POWER ------------ Cold Fusion Reactor > --- PROPULSION ------- Potential Leg Potential Leg Compact Wheel > --- UTILITY ---------- Large Storage Unit System Purifier > --- WEAPON ----------- Beamcaster Advanced Beam Cannon Plasma Cannon > --- INVENTORY -------- Micro Nuclear Core Heat Sink Improved Heat Sink Coolant Injector Modified TNC Supersonic Drone Bay Improved EM Shotgun Improved EM Shotgun Improved EM Shotgun Spread Laser Light EM Pulse Cannon Rocket Launcher [Rating: 53] Favorites ----------- Power Ion Engine Engine Ion Engine Power Core Nuclear Core Reactor Cold Fusion Reactor Propulsion Light Treads Treads Light Treads Leg Potential Leg Wheel Wheel Utility Large Storage Unit Device Heat Sink Storage Large Storage Unit Weapon Beamcaster Energy Gun Beamcaster Energy Cannon Light EM Pulse Cannon Ballistic Gun Assault Rifle Ballistic Cannon Light Cannon Launcher Proton Missile Launcher Build | -11 -10 -10 -9 -9 -9 -8 -8 ------- Run | Yrd Mat Min Mat Min Exi Min Mat Slots Evolved 4 | . . . 2 . . . 2 Power . | . . . . . . . . Propulsion 1 | . . . 1 . . . . Utility 2 | . . . . . . . 2 Weapon 1 | . . . 1 . . . . Parts Attached 59 | . 4 1 9 4 9 2 30 Power 10 | . 2 . 1 1 1 1 4 Engine 6 | . 2 . 1 1 . . 2 Core 3 | . . . . . . 1 2 Reactor 1 | . . . . . 1 . . Propulsion 10 | . . . 3 1 3 . 3 Treads 5 | . . . 2 1 . . 2 Leg 3 | . . . . . 2 . 1 Wheel 2 | . . . 1 . 1 . . Hover . | . . . . . . . . Flight . | . . . . . . . . Utility 14 | . 1 . . 1 3 1 8 Device 12 | . . . . 1 3 1 7 Storage 2 | . 1 . . . . . 1 Processor . | . . . . . . . . Hackware . | . . . . . . . . Protection . | . . . . . . . . Artifact . | . . . . . . . . Weapon 25 | . 1 1 5 1 2 . 15 Energy Gun 11 | . . . 3 1 . . 7 Energy Cannon 5 | . . . 2 . 2 . 1 Ballistic Gun 3 | . . 1 . . . . 2 Ballistic Cannon 1 | . 1 . . . . . . Launcher 5 | . . . . . . . 5 Special Weapon . | . . . . . . . . Impact Weapon . | . . . . . . . . Slashing Weapon . | . . . . . . . . Piercing Weapon . | . . . . . . . . Special Melee Weapon . | . . . . . . . . Unidentified Prototypes 4 | . . . 2 . 2 . . Corrupted Parts 2 | . . . . . . . 2 System Corruption 7 | . . . . . . . 7 Parts Lost 21 | . 1 4 . . . 2 14 Power 5 | . 1 1 . . . 1 2 Propulsion 5 | . . 2 . . . . 3 Utility 2 | . . . . . . . 2 Weapon 9 | . . 1 . . . 1 7 Highest Loss Streak 3 | . 1 3 . . . 2 3 To Critical Strikes 1 | . . . . . . 1 . Average Slot Usage (%) 90 | . 84 75 77 99 98 97 88 Engine 8 | . 13 11 5 11 10 . 6 Treads 9 | . . . 21 22 15 . 2 Leg 12 | . 28 20 . . 6 22 18 Wheel 5 | . . . 10 11 9 11 . Device 12 | . . . . 10 11 11 24 Storage 11 | . 14 14 11 11 11 11 9 Energy Gun 14 | . 2 . 18 22 19 11 15 Energy Cannon 6 | . . . 9 11 13 20 2 Ballistic Gun 4 | . 14 13 . . . . 4 Ballistic Cannon 2 | . 12 14 . . . . . Peak Build Rating 53 | . 7 6 13 22 52 53 53 Average Rating 26 | . 5 5 10 17 28 49 46 On Entrance 18 | 6 6 6 3 13 22 52 40 Naked Turns . | . . . . . . . . Heaviest Build 105 | 12 30 30 35 42 52 52 105 Greatest Support 75 | 20 20 20 10 20 60 60 75 Greatest Overweight (x) 13 | . 1 7 3 3 13 . 1 Average Overweight (x) 1 | . . 1 2 1 1 . . Largest Inventory Capacity 25 | . 15 15 15 15 15 15 25 Average Capacity 17 | . 13 15 15 15 15 15 23 Most Carried 16 | . 7 7 8 10 12 13 16 Average Carried 8 | . 6 6 5 8 9 11 10 Final Capacity 25 | 8 15 15 15 15 15 15 25 Final Carried 12 | 6 6 6 7 9 11 10 12 Class Distribution -------------------- 41% | Gunner 29% | Scavenger-Gunner 24% | Mutant 3% | Scavenger-Mutant Dominant Class ---------------- Mutant | -10/Materials Mutant | -10/Mines Gunner | -9/Materials Gunner | -9/Mines Scavenger-Gunner | -9/Exiles Gunner | -8/Mines Scavenger-Gunner | -8/Materials Resources | -11 -10 -10 -9 -9 -9 -8 -8 ----------- Run | Yrd Mat Min Mat Min Exi Min Mat Matter Collected 1309 | 197 144 167 90 40 70 80 521 Remotely . | . . . . . . . . Salvage Created 3406 | . 195 128 154 251 109 155 2414 Parts 178 | . 18 7 13 13 13 3 111 Haulers Intercepted 5 | . . . 1 . . . 4 Recyclers Shooed 1 | . . . . . . . 1 Parts Field Recycled . | . . . . . . . . Retrieved Matter . | . . . . . . . . Parts Self-Destructed . | . . . . . . . . Prevented . | . . . . . . . . Kills | -11 -10 -10 -9 -9 -9 -8 -8 ------- Run | Yrd Mat Min Mat Min Exi Min Mat Combat Hostiles Destroyed 74 | . 7 5 7 6 1 3 45 Guns 44 | . 3 2 6 3 . 1 29 Cannons 12 | . 4 3 1 . 1 1 2 AOE 17 | . . . . 3 . . 14 Classes Destroyed 15 | . 3 . 1 . 2 1 8 Worker 1 | . . . . . . . 1 Builder 4 | . . . . . . . 4 Tunneler 1 | . . . . . . . 1 Hauler 5 | . . . 1 . . . 4 Recycler 1 | . . . . . . . 1 Turret 1 | . . . . . 1 . . Watcher 6 | . 1 . 1 . . . 4 Swarmer 19 | . 3 2 7 . . . 7 Grunt 41 | . 4 3 . 6 . 2 26 Brawler 1 | . . . . . . 1 . Duelist 2 | . . . . . . . 2 Sentry 6 | . . . . . . . 6 Hunter 3 | . . . . . . . 3 Heavy 1 | . . . . . . . 1 Assembled 1 | . . . . . 1 . . Best Kill Streak 14 | . 3 2 5 3 4 2 14 Combat Bots Only 13 | . 3 2 4 3 1 2 13 Max Kills in Single Turn 3 | . 1 1 1 3 2 1 3 Gunslinging . | . . . . . . . . Exploded 3 | . . . . 3 . . 3 Melee . | . . . . . . . . Uniques/NPCs Destroyed 2 | . . . . . 2 . . EX-DEC (-9/Exiles) EX-BIN (-9/Exiles) Combat | -11 -10 -10 -9 -9 -9 -8 -8 -------- Run | Yrd Mat Min Mat Min Exi Min Mat Hostile Shots Fired 375 | . 32 42 25 9 36 13 218 Missed 110 | . 9 9 10 3 12 5 62 Damage Taken 4078 | . 258 380 125 95 363 139 2718 Core 783 | . 15 84 46 13 55 17 553 Absorbed by Shields . | . . . . . . . . Core Remaining (%) 75 | 100 . 60 . . . 67 . Volleys Fired 210 | . 21 26 12 11 13 8 119 Largest 3 | . 2 2 3 3 3 3 3 Hottest 223 | . 70 55 186 176 223 223 208 Shots Fired 460 | . 42 49 23 23 37 23 263 Gun 330 | . 29 23 18 19 13 8 220 Cannon 114 | . 13 26 5 4 24 15 27 Launcher 16 | . . . . . . . 16 Special . | . . . . . . . . Kinetic 132 | . 34 49 . . . . 49 Thermal 272 | . 8 . 17 11 37 23 176 Explosive 3 | . . . . . . . 3 Electromagnetic 53 | . . . 6 12 . . 35 Robot Hit Streak 14 | . 8 6 5 10 14 5 14 Robot Miss Streak 5 | . 3 4 4 4 4 2 5 Penetration Max . | . . . . . . . . Secondary Targets 2 | . . . 1 . . . 1 Max Gunslinging Chain 1 | . . . 1 . . . 1 Shots Hit Robots 293 | . 28 27 17 17 22 13 169 Core Hits 227 | . 13 8 18 17 9 4 158 Critical Kills . | . . . . . . . . Critical Parts Destroyed 1 | . 1 . . . . . . Critical Strikes 11 | . 1 . . 1 1 1 7 Burn 9 | . . . . . 1 1 7 Destroy 1 | . 1 . . . . . . Corrupt 1 | . . . . 1 . . . Melee Attacks . | . . . . . . . . Impact . | . . . . . . . . Slashing . | . . . . . . . . Piercing . | . . . . . . . . Sneak Attacks . | . . . . . . . . Combat Hostiles . | . . . . . . . . Follow-up Attacks . | . . . . . . . . Damage Inflicted 6874 | . 391 378 261 454 308 309 4773 Guns 3707 | . 266 160 177 275 91 105 2633 Cannons 1188 | . 125 218 84 25 217 204 315 Explosions 1968 | . . . . 154 . . 1814 Melee . | . . . . . . . . Ramming 11 | . . . . . . . 11 Kinetic 1045 | . 292 378 . . . . 375 Thermal 4080 | . 99 . 157 318 308 309 2889 Explosive 491 | . . . . . . . 491 Electromagnetic 1247 | . . . 104 136 . . 1007 Impact . | . . . . . . . . Slashing . | . . . . . . . . Piercing . | . . . . . . . . Highest Corruption 8 | . . . . . . 7 8 Average Corruption 7 | . . . . . . 7 7 Corruption Purged . | . . . . . . . . Corruption Blocked . | . . . . . . . . Effects 9 | . . . . . . 2 7 Message Errors 3 | . . . . . . 1 2 Matter Fused 2 | . . . . . . 1 1 Heat Flow Errors 1 | . . . . . . . 1 Energy Discharges 2 | . . . . . . . 2 Weapon Failures 1 | . . . . . . . 1 Overload Shots . | . . . . . . . . Overflow Damage 56 | . . 8 . . . . 48 Projectiles 19 | . . 8 . . . . 11 Explosions 37 | . . . . . . . 37 Melee . | . . . . . . . . Knockbacks 4 | . 1 3 . . . . . Impact . | . . . . . . . . Kinetic 4 | . 1 3 . . . . . Secondary . | . . . . . . . . Self-Inflicted Damage 183 | . . . . . . . 183 Shots 6 | . . . . . . . 6 Rammed . | . . . . . . . . Targets Rammed 1 | . . . . . . . 1 Kicked 1 | . . . . . . . 1 Crushed . | . . . . . . . . Highest Temperature 660 | . 107 45 415 96 197 597 660 Average Temperature 137 | . 66 15 135 37 133 266 169 Received Heat Transfer 1365 | . 114 162 . 54 . 81 954 Effects 10 | . . . 1 . . 3 6 Shutdowns 1 | . . . 1 . . . . Energy Bleed 3 | . . . . . . 1 2 Matter Decay 2 | . . . . . . 1 1 Damage (minor) 3 | . . . . . . 1 2 Damage (core) 1 | . . . . . . . 1 Siege Activations . | . . . . . . . . Robots Corrupted . | . . . . . . . . Combat Hostiles . | . . . . . . . . Parts Fried 4 | . . . . . . . 4 Impact Corruptions . | . . . . . . . . Robots Melted 2 | . . . . . 1 1 . Combat Hostiles 1 | . . . . . . 1 . Parts Melted 35 | . . . . . 16 2 17 Heat Transferred 7258 | . 296 . 190 336 706 644 5086 Parts Sabotaged . | . . . . . . . . Parts Stolen . | . . . . . . . . Parts Stripped . | . . . . . . . . Power Chain Reactions 10 | . . . . 1 . . 9 Alert | -11 -10 -10 -9 -9 -9 -8 -8 ------- Run | Yrd Mat Min Mat Min Exi Min Mat Peak Influence 1005 | . 212 162 229 199 . 53 1005 Initial 88 | . . 82 25 88 . . . Average 188 | . 110 86 121 82 . 10 385 Maximum Alert Level 3 | . 1 . 1 . . . 3 Low Security (%) 70 | . 80 100 62 100 . 100 26 Level 1 16 | . 19 . 37 . . . 36 Level 2 6 | . . . . . . . 19 Level 3 6 | . . . . . . . 17 Level 4 . | . . . . . . . . Level 5 . | . . . . . . . . High Security . | . . . . . . . . Max Security . | . . . . . . . . Squads Dispatched 10 | . . . . 1 . . 9 Investigation 4 | . . . . 1 . . 3 Extermination . | . . . . . . . . Reinforcement 3 | . . . . . . . 3 Assault 2 | . . . . . . . 2 Garrison 1 | . . . . . . . 1 Intercept . | . . . . . . . . Searches Triggered . | . . . . . . . . Construction Impeded . | . . . . . . . . Haulers Reinforced . | . . . . . . . . Active Scanning Responses . | . . . . . . . . Cargo Convoy Interrupts . | . . . . . . . . Stealth | -11 -10 -10 -9 -9 -9 -8 -8 --------- Run | Yrd Mat Min Mat Min Exi Min Mat Distress Signals 7 | . . . 2 . . . 5 Communications Jammed . | . . . . . . . . Distress Signals . | . . . . . . . . Times Spotted 117 | . 11 9 9 8 11 3 66 Peak Tracking Total 11 | . 3 3 4 3 11 3 6 Tactical Retreats 8 | . . 2 1 . 2 . 3 Traps | -11 -10 -10 -9 -9 -9 -8 -8 ------- Run | Yrd Mat Min Mat Min Exi Min Mat Traps Triggered 2 | . . . . . . . 2 Indirectly . | . . . . . . . . Trap Hack Attempts . | . . . . . . . . Triggered . | . . . . . . . . Disarmed . | . . . . . . . . Reprogrammed . | . . . . . . . . Reused . | . . . . . . . . Traps Extracted . | . . . . . . . . Installed . | . . . . . . . . Triggered . | . . . . . . . . Machines | -11 -10 -10 -9 -9 -9 -8 -8 ---------- Run | Yrd Mat Min Mat Min Exi Min Mat Machines Disabled 15 | . . . . 3 3 . 9 Max in Single Turn 1 | . . . . 1 1 . 1 Garrison Access 1 | . . . . . . . 1 Machines Repaired . | . . . . . . . . Machines Dismantled . | . . . . . . . . Machines Sabotaged . | . . . . . . . . Overloaded Fab Kills . | . . . . . . . . Hacking | -11 -10 -10 -9 -9 -9 -8 -8 --------- Run | Yrd Mat Min Mat Min Exi Min Mat Machines Accessed 9 | . 2 . . 1 1 1 4 Terminals 7 | . 2 . . . . 1 4 Fabricators . | . . . . . . . . Repair Stations . | . . . . . . . . Recycling Units . | . . . . . . . . Scanalyzers . | . . . . . . . . Garrison Access . | . . . . . . . . Total Hacks 19 | . 4 . . 1 1 2 11 Successful 7 | . 1 . . 1 1 1 3 Failed 12 | . 3 . . . . 1 8 Catastrophic 5 | . 1 . . . . . 4 Database Lockouts . | . . . . . . . . Manual 18 | . 4 . . . 1 2 11 Terminals 17 | . 4 . . . . 2 11 Fabricators . | . . . . . . . . Repair Stations . | . . . . . . . . Recycling Units . | . . . . . . . . Scanalyzers . | . . . . . . . . Garrison Access . | . . . . . . . . Terminal Hacks 5 | . . . . 1 1 1 2 Open Door 1 | . . . . 1 . . . Unreport Threat 3 | . . . . . . 1 2 Derelict Proto ID Bank 1 | . . . . . 1 . . Fabricator Hacks . | . . . . . . . . Repair Station Hacks . | . . . . . . . . Recycling Unit Hacks . | . . . . . . . . Scanalyzer . | . . . . . . . . Garrison Access Hacks . | . . . . . . . . Unauthorized Hacks 2 | . 1 . . . . . 1 Terminals 2 | . 1 . . . . . 1 Botnet 1 | . . . . . . . 1 Skim 1 | . 1 . . . . . . Fabricators . | . . . . . . . . Repair Stations . | . . . . . . . . Recycling Units . | . . . . . . . . Scanalyzers . | . . . . . . . . Garrison Access . | . . . . . . . . Data Cores Recovered . | . . . . . . . . Used . | . . . . . . . . Hacking Detections 7 | . 2 . . . . 1 4 Full Trace Events 2 | . . . . . . . 2 Feedback Events . | . . . . . . . . Feedback Blocked . | . . . . . . . . Robot Schematics Acquired . | . . . . . . . . Robots Built . | . . . . . . . . Authchips . | . . . . . . . . Time . | . . . . . . . . Total Robot Build Rating . | . . . . . . . . Part Schematics Acquired . | . . . . . . . . Parts Built . | . . . . . . . . Authchips . | . . . . . . . . Time . | . . . . . . . . Total Part Build Rating . | . . . . . . . . Parts Repaired . | . . . . . . . . Time . | . . . . . . . . Parts Recycled . | . . . . . . . . Recycled Matter . | . . . . . . . . Retrieved Matter . | . . . . . . . . Retrieved Components . | . . . . . . . . Parts Scanalyzed . | . . . . . . . . Part Schematics Acquired . | . . . . . . . . Parts Damaged . | . . . . . . . . Bothacking | -11 -10 -10 -9 -9 -9 -8 -8 ------------ Run | Yrd Mat Min Mat Min Exi Min Mat Used RIF Installer . | . . . . . . . . Robots Hacked . | . . . . . . . . Non-combat . | . . . . . . . . Combat . | . . . . . . . . Robot Hacks Applied . | . . . . . . . . Relay Couplers Released 1 | . . . . . . . 1 Machine Destruction 1 | . . . . . . . 1 Fabnet Peak Effective % . | . . . . . . . . Robots Rewired . | . . . . . . . . Allies Hacked . | . . . . . . . . Hacks Repelled . | . . . . . . . . Allies | -11 -10 -10 -9 -9 -9 -8 -8 -------- Run | Yrd Mat Min Mat Min Exi Min Mat Total Allies 4 | . . . . 4 . . . Largest Group 3 | . . . . 3 3 . . Highest-Rated Group 40 | . . . . 40 40 . . Highest-Rated Ally 31 | . . . . 31 16 . . Total Orders 5 | . . . . . . . 5 EXPLORE 5 | . . . . . . . 5 Ally Attacks 40 | . . . . 11 29 . . Total Damage 892 | . . . . 127 765 . . Kills 8 | . . . . 2 6 . . Allies Corrupted . | . . . . . . . . Allies Melted . | . . . . . . . . Turrets Deployed 1 | . . . . . 1 . . Intel | -11 -10 -10 -9 -9 -9 -8 -8 ------- Run | Yrd Mat Min Mat Min Exi Min Mat Robot Analysis Total . | . . . . . . . . Derelict Logs Recovered 3 | . . 1 . 2 . . . Drone Launches 5 | . . . . . . . 5 Drone Recoveries 5 | . . . . . . . 5 Exploration | -11 -10 -10 -9 -9 -9 -8 -8 ------------- Run | Yrd Mat Min Mat Min Exi Min Mat Turns Passed 4954 | . 351 667 189 1233 782 275 1457 Spaces Moved 2114 | 1 156 254 106 458 328 255 556 Core 23 | . . 21 . . 2 . . Treads 617 | . . . . 446 171 . . Legs 1356 | 1 156 233 . . 155 255 556 Wheels 118 | . . . 106 12 . . . Hover . | . . . . . . . . Flight . | . . . . . . . . Fastest Speed 45 | 120 120 190 95 125 45 90 90 Average Speed 181 | 120 170 217 116 253 209 90 147 Slowest Speed 700 | 120 190 400 125 320 700 90 176 Overloaded Moves 34 | . . . . . 34 . . Propulsion Burnouts . | . . . . . . . . Robots Hopped . | . . . . . . . . Cave-ins Triggered . | . . . . . . . . Exploration Rate (%) 50 | 1 34 68 11 90 68 62 66 Regions Visited 7 Branch Regions 4 Pre-discovered Areas . | . . . . . . . . Known Exits Taken 1 | . . . . 1 . . . Unknown Exits Taken 6 | 1 1 1 1 . 1 1 . Scrap Searched 5 | . . 1 . 3 . 1 . Spaces Dug . | . . . . . . . . Terrain Destroyed 71 | . . . . 5 2 3 61 Melee . | . . . . . . . . Projectile 5 | . . . . . 2 3 . AOE 66 | . . . . 5 . . 61 Terrain Rammed . | . . . . . . . . Walls Destroyed . | . . . . . . . . Machines Disabled . | . . . . . . . . Actions | -11 -10 -10 -9 -9 -9 -8 -8 --------- Run | Yrd Mat Min Mat Min Exi Min Mat Total 2830 | . 199 324 151 511 395 284 966 Wait 385 | . 16 43 14 28 39 14 231 Move 2107 | . 155 253 105 457 327 254 556 Hop . | . . . . . . . . Pick Up 36 | . . 1 8 5 1 3 18 Fast Attach 19 | . 3 . 1 1 4 . 10 Attach 27 | . . 1 7 1 2 2 14 Detach 7 | . . . . 1 3 . 3 Swap 13 | . 1 . 1 2 3 . 6 Drop 25 | . 3 . 3 5 3 3 8 Fire 210 | . 21 26 12 11 13 8 119 Melee . | . . . . . . . . Ram . | . . . . . . . . Kick 1 | . . . . . . . 1 Crush . | . . . . . . . . Escape Stasis . | . . . . . . . . Rewire . | . . . . . . . . Trap . | . . . . . . . . Miscellaneous . | . . . . . . . . Route ------- -11/Scrapyard -10/Materials -10/Mines -9/Materials -9/Mines (discovered 3 exits: *Mat x2 / *Exi) -9/Exiles -8/Mines -8/Materials (discovered 4 exits: [*Fac x2] / [*Sto x2]) History --------- Turn | Location | Event 1 | -11/Scrapyard | Discovered new exit (range 0) 1 | -11/Scrapyard | Entered Materials 303 | -10/Materials | Build established: Mutant 329 | -10/Materials | Discovered new exit (range 11) 352 | -10/Materials | Entered Mines 506 | -10/Mines | Learned Materials trap positions 616 | -10/Mines | Received a Rocket Launcher from a helpful Derelict 948 | -10/Mines | Lost 3 parts (1p1n1w) 995 | -10/Mines | Discovered new exit (range 7) 1019 | -10/Mines | Entered Materials 1019 | -9/Materials | Evolved 2 slots: Propulsion x1, Weapon x1 1020 | -9/Materials | Loaded intel: 18 trap records 1196 | -9/Materials | Discovered new exit (range 11) 1208 | -9/Materials | Entered Mines 1218 | -9/Mines | Joined a pair of Derelicts in attacking an 0b10 outpost 1304 | -9/Mines | Build established: Gunner 1372 | -9/Mines | Received a Mining Laser from a helpful Derelict 1457 | -9/Mines | Identified exit to Exiles 1620 | -9/Mines | Discovered new exit (range 8) 1754 | -9/Mines | Met a Derelict shopkeep closing up shop 1888 | -9/Mines | Assisted by bots powering up and referring to "LRC-V3" 2021 | -9/Mines | Discovered new exit (range 14) 2429 | -9/Mines | Deemed a non-threat by the Exiles lab entrance 2441 | -9/Mines | Entered Exiles 2441 | -9/Exiles | Accompanied by 3 allies 2446 | -9/Exiles | Build established: Scavenger-Gunner 2521 | -9/Exiles | Met 8R-AWN 2576 | -9/Exiles | Met EX-HEX 2665 | -9/Exiles | Met EX-BIN 2755 | -9/Exiles | Met EX-DEC 2899 | -9/Exiles | Aligned with FarCom system 2902 | -9/Exiles | Given EX-Vault access code 2976 | -9/Exiles | Opened EX-Vault 3004 | -9/Exiles | Found Potential Leg 3007 | -9/Exiles | Found Potential Leg 3014 | -9/Exiles | Found Supersonic Drone Bay 3017 | -9/Exiles | Found Modified TNC 3037 | -9/Exiles | Warned to stay clear of 0b10 Research branches 3122 | -9/Exiles | Attacked by the Exiles 3132 | -9/Exiles | Destroyed EX-DEC 3137 | -9/Exiles | DAS Turret deployed 3140 | -9/Exiles | Destroyed EX-BIN 3191 | -9/Exiles | Found Prototype Device 3191 | -9/Exiles | Identified System Purifier 3216 | -9/Exiles | Discovered new exit (range 10) 3223 | -9/Exiles | Stole three prototypes: Potential Leg, Modified TNC, Supersonic Drone Bay 3223 | -9/Exiles | Entered Mines 3290 | -8/Mines | Build established: Gunner 3488 | -8/Mines | Discovered new exit (range 5) 3498 | -8/Mines | Entered Materials 3498 | -8/Materials | Evolved 2 slots: Utility x2 3566 | -8/Materials | Discovered new exit (range 5) 3655 | -8/Materials | Discovered new exit (range 16) 3897 | -8/Materials | Discovered new exit (range 34) 4213 | -8/Materials | Build established: Scavenger-Gunner 4662 | -8/Materials | Build established: Gunner 4687 | -8/Materials | Garrison activated, responded to threat 4698 | -8/Materials | First assault squad dispatched 4721 | -8/Materials | Core integrity fell below 50% 4738 | -8/Materials | Lost 3 parts (3w) 4791 | -8/Materials | Destroyed 13 combat bots 4817 | -8/Materials | Discovered new exit (range 3) 4851 | -8/Materials | Lost 3 parts (1p1u1w) 4927 | -8/Materials | Core integrity fell below 20% 4956 | -8/Materials | Core destroyed Last Messages --------------- 04916_ Med. Laser destroyed. 04916_ G-47 Trooper destroyed. 04924_ System corrupted: Hvy. Laser failed to cycle. 04925_ ZFTKQEHD#ER3WH=JVVA,E U 04931_ M-28 Smith repairs G-47 Trooper. 04941_ G-47 Trooper heat damages Particle Gun. 04941_ G-47 Trooper destroyed. 04942_ Power failure averted by Cryofiber Web. 04946_ Overheating: Matter decay (-35). 04947_ Overheating: Huge Storage Unit damaged (-325). 04948_ Power failure averted by Cryofiber Web. 04950_ Short circuit averted by Cryofiber Web. 04951_ Power failure averted by Cryofiber Web. 04952_ M-28 Smith repairs G-47 Trooper. 04953_ Overheating: Energy bleed (-5). 04955_ Power failure averted by Cryofiber Web. 04956_ Overheating: Core damaged (-66). Map ----- +----------------------------------------------------+ | " # [ #?# #??????????????? | | # #?# = #??????????????? | | ######## #?# !%= ! #??????????????? | | #??# #####/#########??????????????? | | #??# # *% [ #??????????????????? | | #??# # = #??????????????????? | | #??# # =[ #??????????????????? | | #??# # %! #??????????????????? | | #??# # " = #??????????????????? | | #####??# """ # " =! #??????????????????? | | ######?# """ # %%* #??????????????????? | | ######## "" # %%%= #??????????????????? | | % = #####/# ##########???????????? | | %%!% #### #???????????? | | = % + ^ #???????????? | | %!* % #### #???????????? | | ! ###/### #?##^ "T" #???????????? | | ######### ??# #?#" """%#???????????? | | #???????# ???# #??#! #???????????? | | % % #???????#????# #######+####??????????? | | % ####????????????# ! #??????????? | | ##[#???????????????# ]<%#??????????? | | ##/####????????????# = ! #??????????? | | [*%= #????????????######%%# #??????????? | | [%[! #?????????????????#g # #??????????? | | == #?????????????????#@m#==[ ! #??????????? | | #?????????????????# #== ! #??????????? | | #?????????????????# ########??????????? | | #?????????????????# #?????????????????? | | #?????????????????# #?????????????????? | | #?????????????????# #?????????????????? | | #?????????????????# #?????????????????? | | #######?????????????????# #?????????????????? | | ????????????????????????# #?????????????????? | | ????????????????????????# #?????????????????? | | ????????????????????????# #?????????????????? | | ????????????????????????# #?????????????????? | | ????????????????????????? #?????????????????? | | ????????????????????????? ??????????????????? | | ????????????????????????? ??????????????????? | | ????????????????????????? ??????????????????? | | ?????????????????????????????????????????????? | | ?????????????????????????????????????????????? | | ?????????????????????????????????????????????? | | ?????????????????????????????????????????????? | | ?????????????????????????????????????????????? | | ?????????????????????????????????????????????? | | ?????????????????????????????????????????????? | | ?????????????????????????????????????????????? | | ?????????????????????????????????????????????? | +----------------------------------------------------+ Best States ------------- Heat Dissipation 69 Coolant Potential 65 Energy Generation 18 Energy Capacity 265 Matter Stores 300 Matter Capacity 300 Sight Range 16 Terrain Scan Density 10 Base Temperature (-) 100 Evasion (%) 66 Recoil Reduction 1 Item Schematics ----------------- None Robot Schematics ------------------ None Fabricated ------------ Nothing Alien Tech Used ----------------- None Achievements -------------- None Challenges ------------ None Game ------ Seed SlugImpactAxe Manual? 0 Play Time 00:58:55 Cumulative 79.1 hours Start 2024.10.24 @ 14:28:20 End 2024.10.24 @ 15:00:10 Sessions 1 Manual Loads 0 Difficulty Rogue Special Mode None Game No. 75 Rogue 57 Adventurer 16 Explorer 2 Win Type - Total 1 Types 1/0/0/0/0/0/0/0/0 Lore% 20 Gallery% 47 Achievement% 41 Wizard Run 0 Options --------- Layout 2 ASCII 0 Keyboard 0 Movement Mouse Keybinds 1 Fullscreen 2 Font 24/Terminus Map View 50x44 Zoom Use 0% Tactical HUD 1 Map Filters NONE Filters NONE Steam X RUN: 8e7deb8b-a108-4d45-99c1-d6c62a5e360a